[Event "Live Chess"]
[Site "Chess.com"]
[Date "2023.09.16"]
[Round "-"]
[White "abcgames2904"]
[Black "Mateus_Claudius"]
[Result "0-1"]
[WhiteElo "1180"]
[BlackElo "1324"]
[TimeControl "900+5"]
[EndTime "15:32:05 PDT"]
[Termination "Mateus_Claudius venceu por xeque-mate"]

1. e4 {[%clk 0:15:03.2]} 1... c5 {[%clk 0:15:02.7]} 2. Bc4 {[%clk 0:15:06.3]}
2... Nc6 {[%clk 0:15:02.1]} 3. Nf3 {[%clk 0:15:11.2]} 3... e6 {[%clk 0:14:53.7]}
4. O-O {[%clk 0:15:13.1]} 4... a6 {[%clk 0:14:47.2]} 5. Nc3 {[%clk 0:15:15.9]}
5... Nf6 {[%clk 0:14:30.9]} 6. e5 {[%clk 0:15:15.1]} 6... Ng4 {[%clk 0:14:27.4]}
7. h3 {[%clk 0:15:16.9]} 7... Ngxe5 {[%clk 0:14:30.6]} 8. Nxe5 {[%clk
0:15:19.6]} 8... Nxe5 {[%clk 0:14:34.8]} 9. d3 {[%clk 0:15:19.1]} 9... d5 {[%clk
0:14:11]} 10. Bf4 {[%clk 0:15:14.1]} 10... Ng6 {[%clk 0:13:41.9]} 11. Bxd5
{[%clk 0:15:02.4]} 11... exd5 {[%clk 0:13:33.7]} 12. Qe2+ {[%clk 0:15:06.3]}
12... Be7 {[%clk 0:13:35.9]} 13. Bg5 {[%clk 0:15:06.3]} 13... Be6 {[%clk
0:13:17.4]} 14. h4 {[%clk 0:15:09.1]} 14... O-O {[%clk 0:12:52.8]} 15. h5 {[%clk
0:15:13]} 15... Bxg5 {[%clk 0:12:53.4]} 16. hxg6 {[%clk 0:15:17.1]} 16... hxg6
{[%clk 0:12:43.9]} 17. f4 {[%clk 0:15:21.2]} 17... Bf6 {[%clk 0:12:42.6]} 18.
Kf2 {[%clk 0:15:21.6]} 18... Bd4+ {[%clk 0:12:27.8]} 19. Kf3 {[%clk 0:15:18.5]}
19... Qh4 {[%clk 0:12:10.9]} 20. g3 {[%clk 0:15:21.2]} 20... Bg4+ {[%clk
0:12:00.9]} 21. Kg2 {[%clk 0:15:23.4]} 21... Qh3# {[%clk 0:11:47.4]} 0-1

[Event "Live Chess"]
[Site "Chess.com"]
[Date "2023.09.16"]
[Round "-"]
[White "Tercette"]
[Black "silvaaps"]
[Result "0-1"]
[WhiteElo "146"]
[BlackElo "759"]
[TimeControl "900+5"]
[EndTime "15:32:31 PDT"]
[Termination "silvaaps venceu por xeque-mate"]

1. e4 {[%clk 0:15:02.1]} 1... d5 {[%clk 0:15:04.5]} 2. f3 {[%clk 0:15:02.8]}
2... dxe4 {[%clk 0:15:08.4]} 3. fxe4 {[%clk 0:15:06.5]} 3... Nc6 {[%clk
0:15:12.1]} 4. Qh5 {[%clk 0:15:09]} 4... Nf6 {[%clk 0:15:13.2]} 5. Qd1 {[%clk
0:15:10.4]} 5... Bg4 {[%clk 0:15:15.1]} 6. Be2 {[%clk 0:15:12.6]} 6... Bxe2
{[%clk 0:15:18.8]} 7. Qxe2 {[%clk 0:15:15.8]} 7... Nd4 {[%clk 0:15:14.3]} 8. Qd1
{[%clk 0:15:18]} 8... Nxe4 {[%clk 0:15:17.2]} 9. d3 {[%clk 0:15:19.6]} 9... Nf6
{[%clk 0:15:19.8]} 10. Nf3 {[%clk 0:15:20.6]} 10... Nxf3+ {[%clk 0:15:23.4]} 11.
gxf3 {[%clk 0:15:22.5]} 11... Qd5 {[%clk 0:15:24.9]} 12. Qe2 {[%clk 0:15:24]}
12... Qe6 {[%clk 0:15:24.7]} 13. Nc3 {[%clk 0:15:10.1]} 13... Qxe2+ {[%clk
0:15:28.3]} 14. Nxe2 {[%clk 0:15:13.7]} 14... O-O-O {[%clk 0:15:33.1]} 15. Bf4
{[%clk 0:15:13.3]} 15... e6 {[%clk 0:15:35.9]} 16. O-O-O {[%clk 0:15:16]} 16...
Nd5 {[%clk 0:15:40.1]} 17. Be3 {[%clk 0:15:16.3]} 17... Nxe3 {[%clk 0:15:44]}
18. f4 {[%clk 0:15:15.5]} 18... Nxd1 {[%clk 0:15:47.6]} 19. Kxd1 {[%clk
0:15:18]} 19... Bd6 {[%clk 0:15:47.7]} 20. Kc1 {[%clk 0:15:21.5]} 20... h6
{[%clk 0:15:50.1]} 21. Nd4 {[%clk 0:15:24.9]} 21... Bxf4+ {[%clk 0:15:53.6]} 22.
Kb1 {[%clk 0:15:19.4]} 22... Rxd4 {[%clk 0:15:57.4]} 23. c3 {[%clk 0:15:22.1]}
23... Rxd3 {[%clk 0:16:01.4]} 24. Rc1 {[%clk 0:15:22.6]} 24... Bxc1 {[%clk
0:16:04.7]} 25. Kxc1 {[%clk 0:15:26]} 25... Rh3 {[%clk 0:16:09.1]} 26. Kd2
{[%clk 0:15:28.9]} 26... Rxh2+ {[%clk 0:16:12.9]} 27. Ke3 {[%clk 0:15:31.3]}
27... Rxb2 {[%clk 0:16:17.3]} 28. Kd3 {[%clk 0:15:35.2]} 28... Rd8+ {[%clk
0:16:21]} 29. Kc4 {[%clk 0:15:38.7]} 29... Rxa2 {[%clk 0:16:25.4]} 30. Kb3
{[%clk 0:15:42.3]} 30... Rh2 {[%clk 0:16:28.9]} 31. Kc4 {[%clk 0:15:45.8]} 31...
Rd6 {[%clk 0:16:33.1]} 32. Kc5 {[%clk 0:15:48.7]} 32... Rh5+ {[%clk 0:16:36.9]}
33. Kc4 {[%clk 0:15:52.4]} 33... Rc6+ {[%clk 0:16:40.2]} 34. Kd3 {[%clk
0:15:56]} 34... Rd5+ {[%clk 0:16:43.2]} 35. Kc2 {[%clk 0:15:59.8]} 35... Rc4
{[%clk 0:16:46]} 36. Kb3 {[%clk 0:16:02.9]} 36... Rh4 {[%clk 0:16:50.2]} 37. Kc2
{[%clk 0:16:06.6]} 37... Ra5 {[%clk 0:16:53.4]} 38. Kd3 {[%clk 0:16:10.3]} 38...
Ra3 {[%clk 0:16:57.2]} 39. Kc2 {[%clk 0:16:12.8]} 39... Rh2+ {[%clk 0:17:00.9]}
40. Kd3 {[%clk 0:16:16.7]} 40... Rh4 {[%clk 0:17:03.9]} 41. Kc2 {[%clk
0:16:20.5]} 41... b5 {[%clk 0:17:08.3]} 42. Kd3 {[%clk 0:16:24]} 42... b4 {[%clk
0:17:12.2]} 43. Kc2 {[%clk 0:16:22]} 43... Rxc3+ {[%clk 0:17:16.3]} 44. Kb2
{[%clk 0:16:23.5]} 44... Rh2+ {[%clk 0:17:21]} 45. Ka1 {[%clk 0:16:22.1]} 45...
Rg3 {[%clk 0:17:25.7]} 46. Kb1 {[%clk 0:16:22.3]} 46... Rg1# {[%clk 0:17:30.4]}
0-1

[Event "Live Chess"]
[Site "Chess.com"]
[Date "2023.09.16"]
[Round "-"]
[White "IMelefante38"]
[Black "Japaawz"]
[Result "1-0"]
[WhiteElo "783"]
[BlackElo "401"]
[TimeControl "900+5"]
[EndTime "15:32:39 PDT"]
[Termination "IMelefante38 venceu por xeque-mate"]

1. e4 {[%clk 0:15:02.2]} 1... d6 {[%clk 0:15:01.7]} 2. Bc4 {[%clk 0:15:05.2]}
2... Nc6 {[%clk 0:14:58.8]} 3. Qf3 {[%clk 0:15:08.8]} 3... Nd4 {[%clk
0:15:01.5]} 4. Qxf7+ {[%clk 0:15:01.5]} 4... Kd7 {[%clk 0:15:01.2]} 5. Na3
{[%clk 0:14:55.5]} 5... Nh6 {[%clk 0:15:01.7]} 6. Qh5 {[%clk 0:14:50.4]} 6... c6
{[%clk 0:15:01.2]} 7. c3 {[%clk 0:14:53.5]} 7... Ne6 {[%clk 0:15:02.7]} 8. Qh3
{[%clk 0:14:53.8]} 8... Ke8 {[%clk 0:15:03.6]} 9. Bxe6 {[%clk 0:14:56.4]} 9...
Bxe6 {[%clk 0:15:07.6]} 10. Qxe6 {[%clk 0:15:00.6]} 10... Qb6 {[%clk 0:15:12.4]}
11. Nf3 {[%clk 0:14:52.6]} 11... Ng4 {[%clk 0:15:13]} 12. Qxg4 {[%clk
0:14:54.1]} 12... d5 {[%clk 0:15:06.7]} 13. exd5 {[%clk 0:14:53.1]} 13... cxd5
{[%clk 0:15:11]} 14. O-O {[%clk 0:14:55.7]} 14... e6 {[%clk 0:15:11.8]} 15. Nd4
{[%clk 0:14:46.5]} 15... Bc5 {[%clk 0:15:12.6]} 16. Re1 {[%clk 0:14:47.4]} 16...
Rf8 {[%clk 0:15:13.3]} 17. Rxe6+ {[%clk 0:14:50.9]} 17... Kf7 {[%clk 0:15:14]}
18. Rxb6 {[%clk 0:14:38.6]} 18... Bxb6 {[%clk 0:15:18.9]} 19. Qe6# {[%clk
0:14:40.2]} 1-0

[Event "Live Chess"]
[Site "Chess.com"]
[Date "2023.09.16"]
[Round "-"]
[White "RDW085"]
[Black "Luisgustavo100"]
[Result "0-1"]
[WhiteElo "1406"]
[BlackElo "947"]
[TimeControl "900+5"]
[EndTime "15:33:16 PDT"]
[Termination "Luisgustavo100 venceu por desistência"]

1. e4 {[%clk 0:15:03.4]} 1... c5 {[%clk 0:15:01.3]} 2. Nf3 {[%clk 0:15:07.4]}
2... d6 {[%clk 0:15:01.5]} 3. d4 {[%clk 0:15:10.9]} 3... cxd4 {[%clk 0:15:04.5]}
4. Nxd4 {[%clk 0:15:15.8]} 4... e5 {[%clk 0:15:08]} 5. Nf3 {[%clk 0:15:19.3]}
5... Nc6 {[%clk 0:15:10.4]} 6. Bb5 {[%clk 0:15:22.9]} 6... Nf6 {[%clk
0:15:10.8]} 7. Nbd2 {[%clk 0:15:26.1]} 7... Be7 {[%clk 0:15:12.9]} 8. O-O {[%clk
0:15:27.8]} 8... O-O {[%clk 0:15:15.2]} 9. c3 {[%clk 0:15:29.5]} 9... a6 {[%clk
0:15:12]} 10. Ba4 {[%clk 0:15:32.5]} 10... Be6 {[%clk 0:15:03.9]} 11. Re1 {[%clk
0:15:34.7]} 11... b5 {[%clk 0:15:03.9]} 12. Bc2 {[%clk 0:15:38.5]} 12... Qc7
{[%clk 0:14:30.4]} 13. Ng5 {[%clk 0:15:37.8]} 13... h6 {[%clk 0:14:00.4]} 14.
Nxe6 {[%clk 0:15:41]} 14... fxe6 {[%clk 0:14:01.1]} 15. b3 {[%clk 0:15:41.2]}
15... a5 {[%clk 0:13:31.6]} 16. Bb2 {[%clk 0:15:43.8]} 16... b4 {[%clk
0:13:27.5]} 17. c4 {[%clk 0:15:45.8]} 17... Nd4 {[%clk 0:13:14.6]} 18. Bxd4
{[%clk 0:15:42.8]} 18... exd4 {[%clk 0:13:17.9]} 19. Nf3 {[%clk 0:15:46.7]}
19... e5 {[%clk 0:13:03.7]} 20. Rc1 {[%clk 0:15:49.2]} 20... Qb7 {[%clk
0:12:44.6]} 21. Bd3 {[%clk 0:15:46.5]} 21... Nd7 {[%clk 0:12:28.5]} 22. Nd2
{[%clk 0:14:32.7]} 22... Nc5 {[%clk 0:12:09.2]} 23. Bf1 {[%clk 0:14:24.1]} 23...
Bg5 {[%clk 0:12:03.1]} 24. g3 {[%clk 0:14:17.3]} 24... Qf7 {[%clk 0:11:32.8]}
25. Qe2 {[%clk 0:14:04.8]} 25... a4 {[%clk 0:10:26.6]} 26. Ra1 {[%clk 0:13:37]}
26... axb3 {[%clk 0:10:12.4]} 27. Nxb3 {[%clk 0:13:37.9]} 27... Nxb3 {[%clk
0:09:52.6]} 28. axb3 {[%clk 0:13:42.8]} 28... Rxa1 {[%clk 0:09:53.4]} 29. Rxa1
{[%clk 0:13:47.7]} 29... Qf3 {[%clk 0:09:41.6]} 30. Qc2 {[%clk 0:13:40]} 30...
Qc3 {[%clk 0:09:09.1]} 31. Qb1 {[%clk 0:13:16.3]} 31... Qf3 {[%clk 0:07:39.1]}
32. Ra2 {[%clk 0:13:10]} 32... Be3 {[%clk 0:06:48.2]} 33. fxe3 {[%clk
0:12:26.8]} 33... Qxe3+ {[%clk 0:06:47.6]} 34. Kh1 {[%clk 0:12:30.7]} 34... Qf3+
{[%clk 0:06:49.5]} 35. Bg2 {[%clk 0:12:34.3]} 35... Qc3 {[%clk 0:06:18.3]} 36.
Rc2 {[%clk 0:12:16.5]} 36... Qd3 {[%clk 0:06:11.5]} 37. Rc1 {[%clk 0:11:43.7]}
37... Qxb1 {[%clk 0:05:43.4]} 38. Rxb1 {[%clk 0:11:47.7]} 38... Rf2 {[%clk
0:05:47.1]} 39. h4 {[%clk 0:11:43.3]} 39... d3 {[%clk 0:05:48.3]} 40. Kg1 {[%clk
0:11:41.9]} 40... Ra2 {[%clk 0:05:39.5]} 41. g4 {[%clk 0:11:02.5]} 41... d2
{[%clk 0:05:19.5]} 42. Kh2 {[%clk 0:10:59.3]} 42... Rc2 {[%clk 0:05:19]} 43. Rd1
{[%clk 0:10:56.4]} 43... Kf7 {[%clk 0:05:04.5]} 44. Kg3 {[%clk 0:11:00.2]} 44...
g5 {[%clk 0:04:33.5]} 45. h5 {[%clk 0:11:03.8]} 45... Ke6 {[%clk 0:04:33]} 46.
Kf3 {[%clk 0:11:03.7]} 46... Rc3+ {[%clk 0:04:31.6]} 47. Kf2 {[%clk 0:11:04.3]}
47... Rxb3 {[%clk 0:04:29.4]} 48. Rxd2 {[%clk 0:11:08.2]} 48... Rc3 {[%clk
0:04:30.7]} 49. Bf1 {[%clk 0:11:11.1]} 49... b3 {[%clk 0:04:28.8]} 50. Rb2
{[%clk 0:11:09.3]} 50... Rc2+ {[%clk 0:04:24.6]} 0-1

[Event "Live Chess"]
[Site "Chess.com"]
[Date "2023.09.16"]
[Round "-"]
[White "Jonas_Rodrigues"]
[Black "guto-XVI"]
[Result "1-0"]
[WhiteElo "1297"]
[BlackElo "1518"]
[TimeControl "900+5"]
[EndTime "15:33:30 PDT"]
[Termination "Jonas_Rodrigues venceu por desistência"]

1. e4 {[%clk 0:15:02.7]} 1... c5 {[%clk 0:15:04.5]} 2. d4 {[%clk 0:15:05.7]}
2... cxd4 {[%clk 0:15:09.4]} 3. c3 {[%clk 0:15:09.3]} 3... Nf6 {[%clk
0:15:08.9]} 4. Bc4 {[%clk 0:15:09.2]} 4... e6 {[%clk 0:15:05]} 5. Nf3 {[%clk
0:15:09.4]} 5... Nxe4 {[%clk 0:15:07.5]} 6. cxd4 {[%clk 0:15:11.2]} 6... d5
{[%clk 0:14:59.9]} 7. Bb5+ {[%clk 0:15:05.1]} 7... Nc6 {[%clk 0:15:02.4]} 8. O-O
{[%clk 0:15:06.5]} 8... Bd6 {[%clk 0:15:04.6]} 9. Ne5 {[%clk 0:15:02.8]} 9...
Bd7 {[%clk 0:15:05.8]} 10. Nxd7 {[%clk 0:15:04.1]} 10... Qxd7 {[%clk 0:15:08.9]}
11. f3 {[%clk 0:15:07.1]} 11... Nf6 {[%clk 0:15:11.3]} 12. Na3 {[%clk
0:15:04.4]} 12... a6 {[%clk 0:15:14.5]} 13. Bxc6 {[%clk 0:14:59.4]} 13... bxc6
{[%clk 0:15:19.4]} 14. Qb3 {[%clk 0:14:53.7]} 14... O-O {[%clk 0:15:19.4]} 15.
Nc2 {[%clk 0:14:55.2]} 15... c5 {[%clk 0:15:19.1]} 16. dxc5 {[%clk 0:14:54.8]}
16... Bxc5+ {[%clk 0:15:24]} 17. Kh1 {[%clk 0:14:59.2]} 17... Rab8 {[%clk
0:15:25.5]} 18. Qd3 {[%clk 0:14:59.4]} 18... Qd6 {[%clk 0:15:20.7]} 19. Ne3
{[%clk 0:15:01]} 19... Bb6 {[%clk 0:15:17.2]} 20. Nc4 {[%clk 0:15:00.4]} 20...
Qc6 {[%clk 0:15:08.2]} 21. Ne5 {[%clk 0:14:54.9]} 21... Qc7 {[%clk 0:14:56]} 22.
Bf4 {[%clk 0:14:52.2]} 22... Bc5 {[%clk 0:14:24.9]} 23. Rac1 {[%clk 0:14:48.4]}
23... Qb6 {[%clk 0:14:11.3]} 24. Rxc5 {[%clk 0:14:30.6]} 24... Qxc5 {[%clk
0:13:59.7]} 25. Rc1 {[%clk 0:14:34.5]} 25... Qe7 {[%clk 0:13:37.2]} 26. Nc6
{[%clk 0:14:29.9]} 26... Qb7 {[%clk 0:12:07.7]} 27. Bxb8 {[%clk 0:13:57]} 27...
Rxb8 {[%clk 0:12:01]} 28. Nxb8 {[%clk 0:13:56.6]} 28... Qxb8 {[%clk 0:12:05.9]}
29. Qxa6 {[%clk 0:14:00.1]} 29... g6 {[%clk 0:12:07]} 30. Rc8+ {[%clk
0:14:02.9]} 1-0

[Event "Live Chess"]
[Site "Chess.com"]
[Date "2023.09.16"]
[Round "-"]
[White "stopgivingup"]
[Black "Arthur_Maciel"]
[Result "0-1"]
[WhiteElo "977"]
[BlackElo "1120"]
[TimeControl "900+5"]
[EndTime "15:33:31 PDT"]
[Termination "Arthur_Maciel venceu por desistência"]

1. c4 {[%clk 0:15:02.1]} 1... e5 {[%clk 0:15:02.4]} 2. Nc3 {[%clk 0:15:05.1]}
2... Nc6 {[%clk 0:15:06.4]} 3. g3 {[%clk 0:15:07.1]} 3... Nf6 {[%clk 0:15:07.7]}
4. Bg2 {[%clk 0:15:08.9]} 4... Bb4 {[%clk 0:15:11.2]} 5. e3 {[%clk 0:15:04.5]}
5... Bxc3 {[%clk 0:15:14.2]} 6. dxc3 {[%clk 0:15:05.1]} 6... O-O {[%clk
0:15:16.6]} 7. Ne2 {[%clk 0:15:03.1]} 7... d6 {[%clk 0:15:08.4]} 8. O-O {[%clk
0:14:57.2]} 8... Bg4 {[%clk 0:14:49.6]} 9. h3 {[%clk 0:14:40.7]} 9... Bh5 {[%clk
0:14:29.4]} 10. Re1 {[%clk 0:14:10.9]} 10... Na5 {[%clk 0:13:42.9]} 11. b3
{[%clk 0:13:46.5]} 11... Nc6 {[%clk 0:13:11.4]} 12. Qd3 {[%clk 0:13:12]} 12...
Bg6 {[%clk 0:12:31.3]} 13. e4 {[%clk 0:12:47.2]} 13... Qe7 {[%clk 0:11:18.2]}
14. Bd2 {[%clk 0:12:10.2]} 14... Rfd8 {[%clk 0:10:51.5]} 15. Qf3 {[%clk
0:10:56.4]} 15... Bxe4 {[%clk 0:09:53.6]} 16. Qe3 {[%clk 0:10:10]} 16... Bxg2
{[%clk 0:09:10.2]} 17. Kxg2 {[%clk 0:10:01.7]} 17... d5 {[%clk 0:08:55.4]} 18.
f3 {[%clk 0:08:19.7]} 18... dxc4 {[%clk 0:08:01.9]} 19. bxc4 {[%clk 0:08:14.8]}
19... Rd7 {[%clk 0:07:29.2]} 20. Nc1 {[%clk 0:07:48]} 20... Rad8 {[%clk
0:06:33.6]} 21. Nb3 {[%clk 0:07:45.5]} 21... a5 {[%clk 0:05:43.8]} 22. Rad1
{[%clk 0:07:05]} 22... b6 {[%clk 0:05:26.2]} 23. a4 {[%clk 0:06:45.6]} 23... Qa3
{[%clk 0:04:54.7]} 24. Rb1 {[%clk 0:03:36.6]} 24... Qxa4 {[%clk 0:04:52.6]} 25.
Qe2 {[%clk 0:03:10.7]} 25... Qa2 {[%clk 0:03:16]} 26. Red1 {[%clk 0:01:47.5]}
26... a4 {[%clk 0:02:34.6]} 27. Na1 {[%clk 0:00:50.7]} 27... Rxd2 {[%clk
0:02:37.7]} 28. Rxd2 {[%clk 0:00:53.7]} 28... Rxd2 {[%clk 0:02:40.4]} 29. Qxd2
{[%clk 0:00:50.2]} 29... Qxd2+ {[%clk 0:02:43.3]} 30. Kf1 {[%clk 0:00:49.8]}
30... Qd3+ {[%clk 0:02:34]} 0-1

[Event "Live Chess"]
[Site "Chess.com"]
[Date "2023.09.16"]
[Round "-"]
[White "GilbertoGOFaria"]
[Black "Cocecion"]
[Result "1/2-1/2"]
[WhiteElo "1662"]
[BlackElo "1679"]
[TimeControl "900+5"]
[EndTime "15:34:06 PDT"]
[Termination "Partida empatada por acordo"]

1. d4 {[%clk 0:14:59.1]} 1... Nf6 {[%clk 0:15:03.6]} 2. Nf3 {[%clk 0:15:01.9]}
2... g6 {[%clk 0:15:06.8]} 3. c4 {[%clk 0:15:06.1]} 3... Bg7 {[%clk 0:15:09.2]}
4. Nc3 {[%clk 0:15:10.7]} 4... d5 {[%clk 0:15:13.4]} 5. cxd5 {[%clk 0:15:04.3]}
5... Nxd5 {[%clk 0:15:17.1]} 6. Bf4 {[%clk 0:15:07]} 6... Nxf4 {[%clk
0:15:18.5]} 7. e3 {[%clk 0:15:06.3]} 7... Nd5 {[%clk 0:15:20.9]} 8. Bc4 {[%clk
0:15:06.8]} 8... c6 {[%clk 0:15:17.3]} 9. O-O {[%clk 0:15:08.6]} 9... O-O {[%clk
0:15:20.3]} 10. a3 {[%clk 0:15:04]} 10... Bg4 {[%clk 0:15:21.3]} 11. h3 {[%clk
0:15:04]} 11... Bxf3 {[%clk 0:15:25.1]} 12. Qxf3 {[%clk 0:15:08.9]} 12... e6
{[%clk 0:15:26.3]} 13. Rad1 {[%clk 0:13:55.8]} 13... Qf6 {[%clk 0:15:01.2]} 14.
Qe2 {[%clk 0:13:12.7]} 14... Nd7 {[%clk 0:15:01.5]} 15. Ne4 {[%clk 0:12:58.2]}
15... Qe7 {[%clk 0:14:58]} 16. Qc2 {[%clk 0:12:00.8]} 16... N7f6 {[%clk
0:14:24.5]} 17. Ng3 {[%clk 0:11:52.3]} 17... Rad8 {[%clk 0:12:57.5]} 18. Ne2
{[%clk 0:11:13.2]} 18... c5 {[%clk 0:12:53.7]} 19. Rd2 {[%clk 0:09:57.2]} 19...
cxd4 {[%clk 0:12:56.7]} 20. Nxd4 {[%clk 0:10:00]} 20... Nb6 {[%clk 0:13:00.5]}
21. Be2 {[%clk 0:10:00.8]} 21... Rc8 {[%clk 0:12:58.6]} 22. Qb3 {[%clk
0:09:48.8]} 22... Rfd8 {[%clk 0:12:45.9]} 23. Rfd1 {[%clk 0:09:09.2]} 23... Qc5
{[%clk 0:12:08.8]} 24. Nxe6 {[%clk 0:08:23.3]} 24... fxe6 {[%clk 0:11:36.6]} 25.
Rxd8+ {[%clk 0:08:24.9]} 25... Kf7 {[%clk 0:11:36.6]} 26. Rxc8 {[%clk
0:07:14.1]} 26... Qxc8 {[%clk 0:11:40]} 27. Bf3 {[%clk 0:06:49.5]} 27... Nfd5
{[%clk 0:10:57.1]} 28. Kf1 {[%clk 0:04:51.8]} 28... a6 {[%clk 0:10:37.1]} 29. e4
{[%clk 0:04:38.3]} 29... Qc4+ {[%clk 0:10:37.4]} 30. Qxc4 {[%clk 0:04:40.7]}
30... Nxc4 {[%clk 0:10:42.3]} 31. exd5 {[%clk 0:04:38.7]} 31... Nxb2 {[%clk
0:10:45.8]} 32. dxe6+ {[%clk 0:04:35.4]} 32... Kxe6 {[%clk 0:10:48.9]} 33. Rb1
{[%clk 0:04:33.3]} 33... Kd6 {[%clk 0:10:43.5]} 34. Re1 {[%clk 0:03:39.5]} 34...
b6 {[%clk 0:10:43.3]} 35. h4 {[%clk 0:03:29.2]} 35... a5 {[%clk 0:10:38.1]} 36.
Re2 {[%clk 0:03:21.1]} 36... Nc4 {[%clk 0:10:39.6]} 37. Rc2 {[%clk 0:02:54.7]}
37... Ne5 {[%clk 0:10:18.9]} 38. Ba8 {[%clk 0:02:36.4]} 38... Bh6 {[%clk
0:08:48.3]} 39. g3 {[%clk 0:02:30.4]} 39... Nd7 {[%clk 0:08:50.3]} 40. a4 {[%clk
0:01:51.6]} 40... Nc5 {[%clk 0:08:48.8]} 41. Rc4 {[%clk 0:01:46.2]} 41... Bg7
{[%clk 0:08:23.1]} 42. Ke2 {[%clk 0:01:17]} 42... h6 {[%clk 0:08:09.7]} 43. f4
{[%clk 0:00:53.8]} 43... Bf6 {[%clk 0:08:10.9]} 44. Kf3 {[%clk 0:00:52.8]} 44...
Ke6 {[%clk 0:07:51.3]} 45. Bc6 {[%clk 0:00:32.8]} 45... Kf5 {[%clk 0:07:53]} 46.
Bb5 {[%clk 0:00:35.9]} 46... h5 {[%clk 0:07:36]} 47. Rc2 {[%clk 0:00:32.7]}
47... Ne6 {[%clk 0:07:34.3]} 48. Rc6 {[%clk 0:00:27.7]} 48... Nd4+ {[%clk
0:07:36.3]} 49. Ke3 {[%clk 0:00:30.1]} 49... Nxc6 {[%clk 0:07:40.1]} 50. Bxc6
{[%clk 0:00:33.3]} 50... Bc3 {[%clk 0:07:44.5]} 51. Kf3 {[%clk 0:00:34.7]} 51...
Be1 {[%clk 0:07:47.6]} 52. Bd7+ {[%clk 0:00:37.7]} 52... Kf6 {[%clk 0:07:50.9]}
53. Be8 {[%clk 0:00:41.6]} 53... Bb4 {[%clk 0:07:47.5]} 54. g4 {[%clk
0:00:41.6]} 54... hxg4+ {[%clk 0:07:51.2]} 55. Kxg4 {[%clk 0:00:46.5]} 55... Bd2
{[%clk 0:07:42.1]} 56. Bd7 {[%clk 0:00:37.3]} 56... Ke7 {[%clk 0:07:42]} 57. Bb5
{[%clk 0:00:40.2]} 57... Be1 {[%clk 0:07:38.4]} 58. h5 {[%clk 0:00:43.5]} 58...
gxh5+ {[%clk 0:07:42.3]} 59. Kxh5 {[%clk 0:00:48.4]} 59... Kf6 {[%clk
0:07:44.2]} 60. Kg4 {[%clk 0:00:52.1]} 60... Bc3 {[%clk 0:07:46.9]} 61. Bd3
{[%clk 0:00:53.9]} 61... Ke6 {[%clk 0:07:42.8]} 62. f5+ {[%clk 0:00:56.7]} 62...
Kf6 {[%clk 0:07:45.5]} 63. Kh5 {[%clk 0:00:54.8]} 63... Bd4 {[%clk 0:07:45.7]}
64. Kg4 {[%clk 0:00:55.2]} 64... Bf2 {[%clk 0:07:47.8]} 65. Kf4 {[%clk 0:00:58]}
65... Bc5 {[%clk 0:07:50.6]} 66. Ke4 {[%clk 0:01:02]} 1/2-1/2

[Event "Live Chess"]
[Site "Chess.com"]
[Date "2023.09.16"]
[Round "-"]
[White "Lucas-LGM"]
[Black "Fellipezin"]
[Result "0-1"]
[WhiteElo "1578"]
[BlackElo "1592"]
[TimeControl "900+5"]
[EndTime "15:34:43 PDT"]
[Termination "Fellipezin venceu por desistência"]

1. e4 {[%clk 0:14:52.7]} 1... e5 {[%clk 0:15:01.7]} 2. Nf3 {[%clk 0:14:55.9]}
2... Nc6 {[%clk 0:15:04.8]} 3. Bb5 {[%clk 0:14:59.1]} 3... a6 {[%clk 0:15:04.2]}
4. Ba4 {[%clk 0:15:02.2]} 4... Nf6 {[%clk 0:15:04.8]} 5. O-O {[%clk 0:15:02]}
5... b5 {[%clk 0:15:05.2]} 6. Bb3 {[%clk 0:15:04.5]} 6... Be7 {[%clk 0:15:06]}
7. Re1 {[%clk 0:15:07.5]} 7... O-O {[%clk 0:15:08.1]} 8. c3 {[%clk 0:15:10]}
8... d6 {[%clk 0:14:59]} 9. h3 {[%clk 0:15:10.9]} 9... h6 {[%clk 0:15:00.7]} 10.
d3 {[%clk 0:15:13.9]} 10... Re8 {[%clk 0:14:40.4]} 11. Nbd2 {[%clk 0:15:03.3]}
11... Bf8 {[%clk 0:14:37.1]} 12. Nf1 {[%clk 0:15:02.4]} 12... Ne7 {[%clk
0:14:38.3]} 13. Ng3 {[%clk 0:15:03.9]} 13... Ng6 {[%clk 0:14:38.4]} 14. Be3
{[%clk 0:14:46.8]} 14... Be6 {[%clk 0:14:39.3]} 15. Bc2 {[%clk 0:14:04.5]} 15...
Qc8 {[%clk 0:13:27]} 16. Kh2 {[%clk 0:13:32.1]} 16... c5 {[%clk 0:13:13.9]} 17.
d4 {[%clk 0:13:09.3]} 17... cxd4 {[%clk 0:12:49.4]} 18. cxd4 {[%clk 0:13:10.5]}
18... exd4 {[%clk 0:12:50.5]} 19. Nxd4 {[%clk 0:13:12.2]} 19... Qb7 {[%clk
0:10:32.4]} 20. Nxe6 {[%clk 0:13:00.1]} 20... Rxe6 {[%clk 0:10:33.7]} 21. a3
{[%clk 0:12:09.9]} 21... Ree8 {[%clk 0:09:37.4]} 22. b4 {[%clk 0:12:00.5]} 22...
Rad8 {[%clk 0:09:21.2]} 23. Bb3 {[%clk 0:11:56.2]} 23... Ne5 {[%clk 0:08:15.1]}
24. Bd4 {[%clk 0:11:27]} 24... Rd7 {[%clk 0:07:12.3]} 25. Re2 {[%clk 0:10:54.5]}
25... Red8 {[%clk 0:07:11.1]} 26. f4 {[%clk 0:08:23.9]} 26... Ng6 {[%clk
0:05:50.7]} 27. Bxf6 {[%clk 0:08:15.3]} 27... gxf6 {[%clk 0:05:45.1]} 28. Qd2
{[%clk 0:07:51.9]} 28... Bg7 {[%clk 0:05:01.1]} 29. f5 {[%clk 0:07:52.6]} 29...
Ne5 {[%clk 0:05:04.3]} 30. Nf1 {[%clk 0:07:29.8]} 30... Nc4 {[%clk 0:04:30.5]}
31. Qd3 {[%clk 0:07:12.3]} 31... d5 {[%clk 0:04:22.1]} 32. exd5 {[%clk
0:06:56.2]} 32... Rxd5 {[%clk 0:04:20.1]} 33. Qe4 {[%clk 0:06:24.3]} 33... Qc7+
{[%clk 0:04:18.1]} 34. Kh1 {[%clk 0:06:06.1]} 34... Rd3 {[%clk 0:03:49.5]} 35.
Bxc4 {[%clk 0:05:49.4]} 35... Qxc4 {[%clk 0:03:25.1]} 36. Qxc4 {[%clk
0:05:52.1]} 36... bxc4 {[%clk 0:03:28.1]} 37. a4 {[%clk 0:05:21.3]} 37... Rb3
{[%clk 0:03:25]} 38. Nd2 {[%clk 0:05:17.7]} 38... Rxb4 {[%clk 0:03:22.9]} 39.
Re4 {[%clk 0:05:07.7]} 39... Rxd2 {[%clk 0:02:28.3]} 40. Re8+ {[%clk 0:05:02.8]}
40... Bf8 {[%clk 0:02:30.9]} 41. Ra8 {[%clk 0:05:05]} 41... Rb6 {[%clk
0:02:17.3]} 42. Rf1 {[%clk 0:05:06.2]} 42... c3 {[%clk 0:02:12.3]} 43. Rf3
{[%clk 0:05:09.5]} 43... c2 {[%clk 0:01:49.2]} 44. Rg3+ {[%clk 0:05:11]} 44...
Kh7 {[%clk 0:01:50.1]} 45. Rxf8 {[%clk 0:04:56.6]} 45... c1=Q+ {[%clk
0:01:49.2]} 46. Kh2 {[%clk 0:05:00]} 46... Qc7 {[%clk 0:01:43.6]} 47. h4 {[%clk
0:04:57.5]} 47... Rb3 {[%clk 0:01:36.1]} 48. Rxf7+ {[%clk 0:04:41.7]} 48... Qxf7
{[%clk 0:01:38]} 49. Rxb3 {[%clk 0:04:46.1]} 49... Qxb3 {[%clk 0:01:40.8]} 0-1